Cogmind - Beta 14 @@@ ROGUE MODE // 2025.03.21 @ 23:32:13 Player: SovietPaperclip Result: Destroyed by D-53 Grenadier with Mini Grenade Launcher Performance ------------- Evolutions (0) 0 Regions Visited (2) 400 Robots Destroyed (14) 70 Value Destroyed (316) 316 Prototype IDs (0) 0 Alien Tech Used (0) 0 Bonus (0) 0 TOTAL SCORE: 786 Bonus ------- None Cogmind --------- Core Integrity 0/250 Matter 179/300 Energy 100/100 System Corruption 0% Temperature Cool (0) Movement Core (350) Ox6 Location -10/Mines Parts ------- > --- POWER (1) -------- (None) > --- PROPULSION (2) --- (None) > --- UTILITY (2) ------ Large Storage Unit > --- WEAPON (2) ------- Mini Grenade Launcher > --- INVENTORY (15) --- Ion Engine Improved Terrain Scanner Seismic Detector Light Armor Plating Tractor Beam Spread Laser Spread Laser Spread Laser Light Assault Rifle Mini Grenade Launcher Peak State ------------ > --- POWER ------------ Ion Engine > --- PROPULSION ------- Wheel > --- UTILITY ---------- Improved Heat Sink Large Storage Unit > --- WEAPON ----------- Assault Rifle Mini Grenade Launcher > --- INVENTORY -------- Ion Engine Improved Terrain Scanner Seismic Detector Light Armor Plating Tractor Beam Spread Laser Spread Laser Spread Laser Light Assault Rifle Mini Grenade Launcher [Rating: 10] Favorites ----------- Power Ion Engine Engine Ion Engine Propulsion Light Treads Treads Light Treads Wheel Wheel Utility Small Storage Unit Device Improved Heat Sink Storage Small Storage Unit Weapon Light Assault Rifle Ballistic Gun Light Assault Rifle Launcher Mini Grenade Launcher Build | -11 -10 -10 ------- Run | Yrd Mat Min Slots Evolved . | . . . Power . | . . . Propulsion . | . . . Utility . | . . . Weapon . | . . . Parts Attached 15 | 6 7 2 Power 2 | 1 . 1 Engine 2 | 1 . 1 Core . | . . . Reactor . | . . . Propulsion 5 | 2 3 . Treads 2 | 2 . . Leg . | . . . Wheel 3 | . 3 . Hover . | . . . Flight . | . . . Utility 4 | 1 3 . Device 2 | . 2 . Storage 2 | 1 1 . Processor . | . . . Hackware . | . . . Protection . | . . . Artifact . | . . . Weapon 4 | 2 1 1 Energy Gun . | . . . Energy Cannon . | . . . Ballistic Gun 3 | 2 1 . Ballistic Cannon . | . . . Launcher 1 | . . 1 Special Weapon . | . . . Impact Weapon . | . . . Slashing Weapon . | . . . Piercing Weapon . | . . . Special Melee Weapon . | . . . Unidentified Prototypes . | . . . Parts Lost 7 | . 3 4 Power 1 | . . 1 Propulsion 3 | . 2 1 Utility 1 | . . 1 Weapon 2 | . 1 1 Highest Loss Streak 4 | . 2 4 To Critical Strikes . | . . . Average Slot Usage (%) 90 | . 92 70 Engine 13 | . 14 8 Treads 14 | . 16 . Wheel 9 | . 9 8 Device 10 | . 9 14 Storage 14 | . 14 14 Ballistic Gun 26 | . 27 14 Launcher 1 | . . 12 Peak Build Rating 10 | 6 9 10 Average Rating 7 | 5 7 8 On Entrance 5 | . 6 9 Naked Turns . | . . . Heaviest Build 29 | 12 29 29 Greatest Support 40 | 40 40 10 Greatest Overweight (x) 7 | . 2 7 Average Overweight (x) . | . . 2 Largest Inventory Capacity 15 | 8 15 15 Average Capacity 9 | 7 8 15 Most Carried 10 | 4 10 10 Average Carried 4 | 1 5 9 Final Capacity 15 | 8 15 15 Final Carried 10 | 4 10 10 Class Distribution -------------------- 100% | Mutant Dominant Class ---------------- Mutant | -10/Materials Mutant | -10/Mines Resources | -11 -10 -10 ----------- Run | Yrd Mat Min Matter Collected 454 | 284 147 23 Remotely . | . . . Salvage Created 472 | 104 329 39 Parts 36 | 8 25 3 Haulers Intercepted . | . . . Recyclers Shooed . | . . . Parts Field Recycled . | . . . Retrieved Matter . | . . . Parts Self-Destructed . | . . . Prevented . | . . . Kills | -11 -10 -10 ------- Run | Yrd Mat Min Combat Hostiles Destroyed 19 | . 9 10 Guns 9 | . 9 . AOE 10 | . . 10 Classes Destroyed 6 | 2 3 1 Tunneler 3 | 2 . 1 Recycler 1 | 1 . . Watcher 1 | . 1 . Swarmer 3 | . 3 . Grunt 6 | . 6 . Assembled 10 | . . 10 Best Kill Streak 11 | 2 3 11 Combat Bots Only 10 | . 3 10 Max Kills in Single Turn 3 | 1 1 3 Gunslinging . | . . . Exploded 3 | . . 3 Melee . | . . . Uniques/NPCs Destroyed . | . . . Combat | -11 -10 -10 -------- Run | Yrd Mat Min Hostile Shots Fired 86 | . 66 20 Missed 19 | . 14 5 Damage Taken 1025 | . 627 398 Core 272 | . 120 152 Absorbed by Shields . | . . . Core Remaining (%) 100 | 100 . . Volleys Fired 81 | 12 55 14 Largest 2 | 2 2 1 Hottest 40 | 40 40 30 Shots Fired 146 | 24 108 14 Gun 134 | 24 108 2 Cannon . | . . . Launcher 12 | . . 12 Special . | . . . Kinetic 134 | 24 108 2 Thermal . | . . . Explosive 12 | . . 12 Electromagnetic . | . . . Robot Hit Streak 11 | 5 11 3 Robot Miss Streak 4 | 3 4 1 Penetration Max . | . . . Secondary Targets . | . . . Shots Hit Robots 96 | 15 74 7 Core Hits 53 | 6 27 20 Critical Kills 1 | . 1 . Critical Parts Destroyed . | . . . Critical Strikes 1 | . 1 . Destroy 1 | . 1 . Melee Attacks . | . . . Impact . | . . . Slashing . | . . . Piercing . | . . . Sneak Attacks . | . . . Combat Hostiles . | . . . Follow-up Attacks . | . . . Damage Inflicted 1632 | 127 574 931 Guns 713 | 127 574 12 Cannons . | . . . Explosions 919 | . . 919 Melee . | . . . Ramming . | . . . Kinetic 713 | 127 574 12 Thermal . | . . . Explosive 919 | . . 919 Electromagnetic . | . . . Impact . | . . . Slashing . | . . . Piercing . | . . . Highest Corruption . | . . . Average Corruption . | . . . Corruption Purged . | . . . Corruption Blocked . | . . . Overload Shots . | . . . Overflow Damage 90 | . . 90 Projectiles . | . . . Explosions 90 | . . 90 Melee . | . . . Knockbacks . | . . . Impact . | . . . Kinetic . | . . . Secondary . | . . . Self-Inflicted Damage 121 | . . 121 Shots 4 | . . 4 Rammed . | . . . Targets Rammed . | . . . Kicked . | . . . Crushed . | . . . Highest Temperature 13 | . 13 . Average Temperature 7 | . 7 . Received Heat Transfer 332 | . 312 20 Siege Activations . | . . . Robots Corrupted . | . . . Combat Hostiles . | . . . Parts Fried . | . . . Impact Corruptions . | . . . Robots Melted . | . . . Combat Hostiles . | . . . Parts Melted . | . . . Heat Transferred . | . . . Parts Sabotaged . | . . . Parts Stolen . | . . . Parts Stripped . | . . . Power Chain Reactions . | . . . Alert | -11 -10 -10 ------- Run | Yrd Mat Min Peak Influence 261 | 15 261 93 Initial 35 | . 9 35 Average 101 | 4 133 48 Maximum Alert Level 1 | . 1 . Low Security (%) 82 | 100 75 100 Level 1 17 | . 24 . Level 2 . | . . . Level 3 . | . . . Level 4 . | . . . Level 5 . | . . . High Security . | . . . Max Security . | . . . Squads Dispatched 1 | . 1 . Investigation 1 | . 1 . Extermination . | . . . Reinforcement . | . . . Assault . | . . . Garrison . | . . . Intercept . | . . . Searches Triggered . | . . . Construction Impeded . | . . . Haulers Reinforced . | . . . Active Scanning Responses . | . . . Cargo Convoy Interrupts . | . . . Stealth | -11 -10 -10 --------- Run | Yrd Mat Min Distress Signals . | . . . Communications Jammed . | . . . Distress Signals . | . . . Times Spotted 28 | . 15 13 Peak Tracking Total 6 | . 4 6 Tactical Retreats 1 | . 1 . Traps | -11 -10 -10 ------- Run | Yrd Mat Min Traps Triggered 1 | . 1 . Indirectly . | . . . Trap Hack Attempts . | . . . Triggered . | . . . Disarmed . | . . . Reprogrammed . | . . . Reused . | . . . Traps Extracted . | . . . Installed . | . . . Triggered . | . . . Machines | -11 -10 -10 ---------- Run | Yrd Mat Min Machines Disabled . | . . . Max in Single Turn . | . . . Machines Repaired . | . . . Machines Dismantled . | . . . Machines Sabotaged . | . . . Overloaded Fab Kills . | . . . Hacking | -11 -10 -10 --------- Run | Yrd Mat Min Machines Accessed 1 | . 1 . Terminals 1 | . 1 . Fabricators . | . . . Repair Stations . | . . . Recycling Units . | . . . Scanalyzers . | . . . Garrison Access . | . . . Total Hacks 2 | . 2 . Successful 1 | . 1 . Failed 1 | . 1 . Catastrophic . | . . . Database Lockouts . | . . . Manual 1 | . 1 . Terminals 2 | . 2 . Fabricators . | . . . Repair Stations . | . . . Recycling Units . | . . . Scanalyzers . | . . . Garrison Access . | . . . Terminal Hacks 1 | . 1 . Branch Access Points 1 | . 1 . Fabricator Hacks . | . . . Repair Station Hacks . | . . . Recycling Unit Hacks . | . . . Scanalyzer . | . . . Garrison Access Hacks . | . . . Unauthorized Hacks . | . . . Terminals . | . . . Fabricators . | . . . Repair Stations . | . . . Recycling Units . | . . . Scanalyzers . | . . . Garrison Access . | . . . Data Cores Recovered . | . . . Used . | . . . Hacking Detections 1 | . 1 . Full Trace Events . | . . . Feedback Events . | . . . Feedback Blocked . | . . . Robot Schematics Acquired . | . . . Robots Built . | . . . Authchips . | . . . Time . | . . . Total Robot Build Rating . | . . . Part Schematics Acquired . | . . . Parts Built . | . . . Authchips . | . . . Time . | . . . Total Part Build Rating . | . . . Parts Repaired . | . . . Time . | . . . Parts Recycled . | . . . Recycled Matter . | . . . Retrieved Matter . | . . . Retrieved Components . | . . . Parts Scanalyzed . | . . . Part Schematics Acquired . | . . . Parts Damaged . | . . . Bothacking | -11 -10 -10 ------------ Run | Yrd Mat Min Used RIF Installer . | . . . Robots Hacked . | . . . Non-combat . | . . . Combat . | . . . Robot Hacks Applied . | . . . Relay Couplers Released . | . . . Fabnet Peak Effective % . | . . . Robots Rewired . | . . . Allies Hacked . | . . . Hacks Repelled . | . . . Allies | -11 -10 -10 -------- Run | Yrd Mat Min Total Allies . | . . . Largest Group . | . . . Highest-Rated Group . | . . . Highest-Rated Ally . | . . . Total Orders . | . . . Ally Attacks . | . . . Total Damage . | . . . Kills . | . . . Allies Corrupted . | . . . Allies Melted . | . . . Intel | -11 -10 -10 ------- Run | Yrd Mat Min Robot Analysis Total . | . . . Derelict Logs Recovered . | . . . Drone Launches . | . . . Drone Recoveries . | . . . Exploration | -11 -10 -10 ------------- Run | Yrd Mat Min Turns Passed 709 | 133 511 65 Spaces Moved 344 | 59 261 24 Core 6 | 4 . 2 Treads 169 | 55 114 . Legs . | . . . Wheels 169 | . 147 22 Hover . | . . . Flight . | . . . Fastest Speed 50 | 50 80 110 Average Speed 126 | 152 120 134 Slowest Speed 400 | 160 160 400 Overloaded Moves . | . . . Propulsion Burnouts . | . . . Robots Hopped . | . . . Cave-ins Triggered . | . . . Exploration Rate (%) 24 | 4 62 8 Regions Visited 2 Branch Regions 1 Pre-discovered Areas . | . . . Known Exits Taken 1 | . 1 . Unknown Exits Taken 1 | 1 . . Scrap Searched . | . . . Spaces Dug 29 | . . 29 Terrain Destroyed 120 | . . 120 Melee . | . . . Projectile . | . . . AOE 120 | . . 120 Terrain Rammed . | . . . Walls Destroyed . | . . . Machines Disabled . | . . . Actions | -11 -10 -10 --------- Run | Yrd Mat Min Total 494 | 80 370 44 Wait 39 | . 36 3 Move 342 | 58 260 24 Hop . | . . . Pick Up 12 | 4 8 . Fast Attach 8 | 6 2 . Attach 2 | . 1 1 Detach 1 | . . 1 Swap 5 | . 4 1 Drop 4 | . 4 . Fire 81 | 12 55 14 Melee . | . . . Ram . | . . . Kick . | . . . Crush . | . . . Escape Stasis . | . . . Rewire . | . . . Trap . | . . . Miscellaneous . | . . . Route ------- -11/Scrapyard -10/Materials (discovered 4 exits: [*Mat x2] / *Min x2) -10/Mines History --------- Turn | Location | Event 8 | -11/Scrapyard | Discovered new exit (range 15) 134 | -11/Scrapyard | Entered Materials 203 | -10/Materials | Identified exit to Mines 302 | -10/Materials | Build established: Mutant 340 | -10/Materials | Discovered new exit (range 10) 526 | -10/Materials | Discovered new exit (range 8) 645 | -10/Materials | Entered Mines 656 | -10/Mines | Assembled infested the area 681 | -10/Mines | Core integrity fell below 50% 705 | -10/Mines | Core integrity fell below 20% 710 | -10/Mines | Destroyed by D-53 Grenadier with Mini Grenade Launcher Last Messages --------------- 00684_ as-60762 destroyed. 00686_ Destroyed Asb. Rifle. 00686_ as-80985 destroyed. 00686_ as-75411 destroyed. 00688_ as-00360 destroyed. 00688_ as-13987 destroyed. 00689_ The unstable cave ceiling collapses. 00704_ as-72919 destroyed. 00704_ Destroyed Asb. Hover Unit. 00706_ as-13883 destroyed. 00706_ as-06118 destroyed. 00706_ as-04529 destroyed. 00707_ The unstable cave ceiling collapses. 00708_ C-30 ARC bursts open, deploying its payload. 00708_ D-53 Grenadier unfolds itself. 00708_ Assault Rifle destroyed. 00709_ The unstable cave ceiling collapses. 00710_ Imp. Heat Sink destroyed. 00710_ Destroyed Imp. Heat Sink. Map ----- +----------------------------------------------------+ | ?????????????????????????????????????????????????? | | ?????????????????????????????????????????????????? | | ?????????????????????????????????????????????????? | | ?????????????????????????????????????????????????? | | ?????????????????????????????????????????????????? | | ?????????????????????????????????????????????????? | | ?????????????????????????????????????????????????? | | ?????????????????????????????????????????????????? | | ?????????????????????????????????????????????????? | | ?????????????????????????????????????????????????? | | ?????????????????????????????????????????????????? | | ?????????????????????????????????????????????????? | | ?????????????????????????????????????????????????? | | ?????????????????????????????????????????????????? | | ?????????????????????????????????????????????????? | | ????????????????????????????????#####????????????? | | ????????????????????????????????# ????????????? | | ????????????????????#######?????# ?????????????? | | ????????????????##### # ###???# #?????????????? | | ??????????????### #???# #???#####?????? | | ?????????????## # ### #???# !#??## ###???? | | ??????????? # # # ##?##* #??# ##??? | | ???????????? a a ### |#### #??? | | ??????????????# % # #??? | | ??????????????# ## ##### #??? | | ??????????# %< @ #???# ##??? | | ??????????# # #???## ##???? | | ????????????????????# dd% #????#####????? | | ????????????????????## ##?????????????? | | ?????????????????????## ###??????????????? | | ??????????????????????### ###????????????????? | | ?????????????????????????######??????????????????? | | ?????????????????????????????????????????????????? | | ?????????????????????????????????????????????????? | | ?????????????????????????????????????????????????? | | | | | | | | | | | | | | | | | | | | | | | | | | | | | | | +----------------------------------------------------+ Best States ------------- Heat Dissipation 39 Energy Generation 10 Energy Capacity 250 Matter Stores 300 Matter Capacity 300 Sight Range 16 Terrain Scan Density 10 Evasion (%) 44 Recoil Reduction 2 Item Schematics ----------------- None Robot Schematics ------------------ None Fabricated ------------ Nothing Alien Tech Used ----------------- None Achievements -------------- None Challenges ------------ None Game ------ Seed MissileSignalHumpback Manual? 0 Play Time 00:07:20 Cumulative 145.0 hours Start 2025.03.21 @ 23:25:29 End 2025.03.21 @ 23:32:13 Sessions 1 Manual Loads 0 Difficulty Rogue Special Mode None Game No. 206 Rogue 206 Adventurer 0 Explorer 0 Win Type - Total 1 Types 1/0/0/0/0/0/0/0/0 Lore% 50 Gallery% 55 Achievement% 53 Wizard Run 0 Options --------- Layout 1 ASCII 0 Keyboard 0 Movement Mouse Keybinds 0 Fullscreen 2 Font 32/Smallcaps Map View 50x40 Zoom Use 0% Tactical HUD 1 Map Filters NONE Filters NONE Steam 1 RUN: c54d0f36-c578-48d8-a753-19ba3d2ae9f5